Cogmind - Beta 14 @@@ ROGUE MODE // 2024.09.24 @ 08:04:57 Player: Rq Result: Destroyed by G-50 Soldier with Heavy Laser Performance ------------- Evolutions (5) 2500 Regions Visited (18) 3600 Robots Destroyed (437) 2185 Value Destroyed (14675) 14675 Prototype IDs (19) 380 Alien Tech Used (0) 0 Bonus (5341) 5341 TOTAL SCORE: 28681 Bonus ------- Triggered High Security 500 High Alert Combat Kills 2901 Follower Combat Kills 1135 MAIN.C Attacked Warlord 500 Met R17 at Cetus 500 Friendly Fire -195 Cogmind --------- Core Integrity 0/1000 Matter 230/300 Energy 98/100 System Corruption 0% Temperature Cool (9) Movement Core (50) Location -5/Warlord Parts ------- > --- POWER (2) -------- (None) > --- PROPULSION (4) --- (None) > --- UTILITY (8) ------ (None) > --- WEAPON (3) ------- (None) > --- INVENTORY (5) ---- Makeshift Power Source Advanced Weight Redist. System Matter Filter Beamcaster KE Penetrator Peak State ------------ > --- POWER ------------ F-cell Engine Quantum Reactor > --- PROPULSION ------- Improved Treads Armored Medium Treads Wheel Wheel > --- UTILITY ---------- Huge Storage Unit Improved Sensor Array Advanced Signal Interpreter Improved Targeting Computer Improved Medium Armor Plating Layered Light Armor Plating Centrium Medium Armor Plating System Guard > --- WEAPON ----------- Enhanced Coil Gun Enhanced Coil Gun Advanced KE Penetrator > --- INVENTORY -------- Neutrino Core Neutrino Core Light Antimatter Reactor Armored Wheel Improved Matter Compressor Improved Sensor Array Advanced Sensor Array Advanced Signal Interpreter Advanced Signal Interpreter Advanced Signal Interpreter Weapon Mount Armor Integrity Analyzer Matter Filter Stasis Canceller Advanced Focal Shield Force Field Advanced Force Field Improved System Shield Improved Field Recycling Unit Drone Bay KE Penetrator KE Penetrator Advanced KE Penetrator Antimatter Cannon Phasing Sabre [Rating: 93] Favorites ----------- Power Heavy Ion Engine Engine Heavy Ion Engine Power Core Nuclear Core Reactor Quantum Reactor Propulsion Light Treads Treads Light Treads Leg Makeshift Leg Wheel Armored Wheel Flight Unit VTOL Module Utility Huge Storage Unit Device Improved Sensor Array Storage Huge Storage Unit Processor Improved Signal Interpreter Hackware Hacking Suite Protection Layered Light Armor Plating Weapon Gauss Rifle Energy Gun Beamcaster Ballistic Gun Gauss Rifle Ballistic Cannon Antimatter Cannon Launcher Heavy Rocket Launcher Special Weapon RU-N14's Throwing Claymores Impact Weapon Power Maul Slashing Weapon Phasing Sabre Build | -11 -10 -10 -9 -9 -8 -7 -7 -7 -7 -6 -6 -6 -6 -6 -5 -5 -5 -5 ------- Run | Yrd Mat Min Mat Min Mat Fac Low Low Zio Pro Fac Ext Cet Arc Fac Upp Upp War Slots Evolved 10 | . . . 2 . 2 2 . . . . 2 . . . 2 . . . Power 1 | . . . . . . . . . . . . . . . 1 . . . Propulsion 2 | . . . 1 . 1 . . . . . . . . . . . . . Utility 6 | . . . 1 . 1 1 . . . . 2 . . . 1 . . . Weapon 1 | . . . . . . 1 . . . . . . . . . . . . Parts Attached 460 | 3 9 6 40 2 56 51 8 4 20 30 44 59 5 6 84 13 18 2 Power 36 | . . 1 4 . 3 2 1 . 2 3 2 6 2 . 6 2 1 1 Engine 21 | . . 1 4 . 3 2 . . . 1 1 5 . . 2 1 . 1 Core 12 | . . . . . . . 1 . 2 2 1 1 1 . 2 1 1 . Reactor 3 | . . . . . . . . . . . . . 1 . 2 . . . Propulsion 114 | 2 1 2 18 1 17 7 1 . 2 3 12 10 . 2 24 3 9 . Treads 74 | 2 1 2 18 1 17 7 1 . 1 2 1 6 . 2 7 1 5 . Leg 4 | . . . . . . . . . 1 1 . . . . 2 . . . Wheel 30 | . . . . . . . . . . . 11 4 . . 15 . . . Hover . | . . . . . . . . . . . . . . . . . . . Flight 6 | . . . . . . . . . . . . . . . . 2 4 . Utility 162 | 1 2 1 6 . 16 27 4 3 6 15 17 29 1 1 27 5 1 . Device 106 | 1 . . . . 9 19 3 1 4 13 14 20 . 1 18 2 1 . Storage 11 | . 1 . 3 . . 1 . . 1 . . 3 . . . 2 . . Processor 14 | . . . 1 . 2 1 1 2 . . 1 2 . . 3 1 . . Hackware 3 | . . . 1 . 1 . . . . . . . . . 1 . . . Protection 28 | . 1 1 1 . 4 6 . . 1 2 2 4 1 . 5 . . . Artifact . | . . . . . . . . . . . . . . . . . . . Weapon 148 | . 6 2 12 1 20 15 2 1 10 9 13 14 2 3 27 3 7 1 Energy Gun 5 | . . . . . . . . . . 1 . . . . . . 4 . Energy Cannon . | . . . . . . . . . . . . . . . . . . . Ballistic Gun 79 | . 4 2 9 1 13 7 . . 5 4 7 4 1 3 16 1 2 . Ballistic Cannon 6 | . . . . . . . . . . . 1 3 1 . 1 . . . Launcher 22 | . 1 . 1 . 6 3 2 1 1 3 1 2 . . 1 . . . Special Weapon 3 | . . . . . . . . . 1 1 . . . . . . 1 . Impact Weapon 6 | . . . . . . 5 . . 1 . . . . . . . . . Slashing Weapon 27 | . 1 . 2 . 1 . . . 2 . 4 5 . . 9 2 . 1 Piercing Weapon . | . . . . . . . . . . . . . . . . . . . Special Melee Weapon . | . . . . . . . . . . . . . . . . . . . Unidentified Prototypes 10 | . . . 1 . 1 . . . 1 1 1 1 2 . 2 . . . Corrupted Parts 6 | . . . . . . . . . . . . . . . . . 6 . System Corruption 28 | . . . . . . . . . . . . . . . . . 28 . Parts Lost 106 | . . 3 3 1 11 13 1 3 . 8 2 14 1 1 33 . 9 3 Power 13 | . . 1 . . 1 1 1 . . . 1 1 . . 5 . 2 . Propulsion 45 | . . . 1 1 6 4 . 1 . 3 1 5 1 1 14 . 4 3 Utility 26 | . . 1 1 . 1 6 . 2 . 1 . 4 . . 8 . 2 . Weapon 22 | . . 1 1 . 3 2 . . . 4 . 4 . . 6 . 1 . Highest Loss Streak 14 | . . 2 2 1 3 7 1 2 . 4 1 12 1 1 14 . 5 2 To Critical Strikes 1 | . . . . . . 1 . . . . . . . . . . . . Average Slot Usage (%) 88 | . 100 94 99 100 95 99 72 62 81 92 95 93 97 98 93 65 67 57 Engine 5 | . 14 13 10 11 9 7 3 . . 4 5 5 3 . 4 4 1 1 Core 1 | . . . . . . . 3 7 7 2 . . . . . 2 4 4 Treads 20 | . 28 28 32 33 31 29 18 17 18 17 3 11 23 25 10 10 10 4 Leg 1 | . . . . . . . . . 4 7 1 . . . . . . . Wheel 2 | . . . . . . . . . . . 19 12 . . 8 . . . Flight 1 | . . . . . . . . . . . . . . . . 8 10 12 Device 8 | . . . . . 5 9 14 11 14 15 17 16 6 6 11 5 4 4 Storage 7 | . 14 14 11 11 9 7 7 7 7 7 6 6 6 6 4 8 6 4 Processor 9 | . . . 7 11 7 7 6 7 7 7 8 6 20 20 17 10 11 10 Hackware 3 | . . . 11 11 9 3 . . . . . . . . . 5 5 4 Protection 6 | . 13 8 3 . 4 8 7 2 1 5 10 15 13 13 8 . . . Ballistic Gun 11 | . 26 28 21 22 17 9 . . 4 16 13 5 . 17 11 3 1 . Launcher 1 | . 1 . . . . 6 1 . . 4 . . . . . . . . Impact Weapon 1 | . . . . . . 6 7 7 7 . . . . . . . . . Slashing Weapon 1 | . . . . . . . . . 4 . 5 4 1 . 2 . . . Peak Build Rating 93 | 9 11 11 22 23 33 49 35 36 49 50 63 69 74 76 93 56 64 57 Average Rating 44 | 7 10 10 19 22 29 45 30 26 37 45 56 59 70 73 80 49 51 44 On Entrance 36 | 6 9 11 11 22 23 31 23 33 23 45 47 59 66 74 74 28 52 58 Naked Turns 4 | . . . . . . . . . . . . . . . . . . 4 Heaviest Build 230 | 15 34 34 94 94 103 142 119 103 121 124 125 132 136 136 154 227 230 227 Greatest Support 99 | 40 40 40 69 69 92 99 68 68 60 60 50 90 90 86 93 55 83 23 Greatest Overweight (x) 14 | . . . 1 1 2 2 2 2 2 5 10 11 1 3 14 4 13 9 Average Overweight (x) 2 | . . . . 1 1 1 1 1 1 2 2 5 1 1 3 1 4 8 Largest Inventory Capacity 35 | 8 15 15 25 25 25 25 25 25 25 25 25 25 25 25 25 35 35 35 Average Capacity 25 | 8 14 15 19 25 25 25 25 25 25 25 25 25 25 25 24 28 35 34 Most Carried 25 | 6 15 15 20 21 25 25 17 21 25 25 25 25 25 25 25 8 11 16 Average Carried 20 | 5 12 14 17 20 24 23 15 18 23 24 24 24 24 24 23 6 7 14 Final Capacity 35 | 8 15 15 25 25 25 25 25 25 25 25 25 25 25 25 5 35 35 5 Final Carried 25 | 2 15 15 20 21 25 20 17 21 25 23 25 25 25 25 5 8 11 5 Class Distribution -------------------- 31% | Mutant 24% | Scavenger-Mutant 11% | Hauler-Mutant 10% | Scavenger-Tank 6% | Derelict-Skirmisher 4% | Commander-Mutant Dominant Class ---------------- Mutant | -10/Materials Mutant | -10/Mines Mutant | -9/Materials Mutant | -9/Mines Scavenger-Mutant | -8/Materials Scavenger-Mutant | -7/Factory Mutant | -7/Lower Caves Mutant | -7/Lower Caves Derelict-Gladiator | -7/Zion Derelict-Skirmisher | -6/Proximity Caves Mutant | -6/Factory Commander-Mutant | -6/Extension Scavenger-Tank | -6/Cetus Scavenger-Tank | -6/Archives Scavenger-Mutant | -5/Factory Hauler-Mutant | -5/Upper Caves Hauler-Mutant | -5/Upper Caves Hauler-Mutant | -5/Warlord Resources | -11 -10 -10 -9 -9 -8 -7 -7 -7 -7 -6 -6 -6 -6 -6 -5 -5 -5 -5 ----------- Run | Yrd Mat Min Mat Min Mat Fac Low Low Zio Pro Fac Ext Cet Arc Fac Upp Upp War Matter Collected 15179 | 254 389 139 1368 180 2154 2082 501 387 200 831 873 1804 415 356 2356 439 451 . Remotely . | . . . . . . . . . . . . . . . . . . . Salvage Created 16012 | 85 631 140 1834 274 2548 3514 210 290 . 1042 575 1200 146 254 3066 17 186 . Parts 779 | 5 34 12 129 20 143 144 11 8 . 25 40 42 2 13 138 4 9 . Haulers Intercepted 12 | . 2 . 4 . 4 1 . . . 1 . . . . . . . . Recyclers Shooed 12 | . . 1 . . 1 1 . . . . 3 4 . . 2 . . . Parts Field Recycled 20 | . . . . . . 9 . . . . . . . . 11 . . . Retrieved Matter 304 | . . . . . . 50 . . . . . . . . 254 . . . Parts Self-Destructed 42 | . . . . . . . 11 7 . 18 . . . . . 2 4 . Prevented 4 | . . . . . . . . . . . . . . . . . 4 . Kills | -11 -10 -10 -9 -9 -8 -7 -7 -7 -7 -6 -6 -6 -6 -6 -5 -5 -5 -5 ------- Run | Yrd Mat Min Mat Min Mat Fac Low Low Zio Pro Fac Ext Cet Arc Fac Upp Upp War Combat Hostiles Destroyed 307 | . 14 5 39 7 53 60 7 4 . 29 5 23 5 4 47 2 3 . Melee 3 | . . . . . . . 1 1 . . . . . . 1 . . . Guns 174 | . 14 5 34 7 36 12 . . . 8 5 12 . . 37 2 2 . Cannons 17 | . . . . . . . . . . . . 4 5 4 4 . . . AOE 106 | . . . 5 . 17 44 4 3 . 21 . 7 . . 5 . . . Classes Destroyed 20 | 2 5 . 6 . 1 2 1 1 . 1 . 1 . . . . . . Worker 55 | . . . 1 1 7 37 . . . . 7 . . . 2 . . . Builder 45 | . . . 1 . 1 37 . . . . 1 1 . . 4 . . . Tunneler 9 | 1 . . 1 . . 5 . . . . 2 . . . . . . . Hauler 12 | . 2 . 4 . 4 1 . . . 1 . . . . . . . . Recycler 27 | 1 1 . . 1 2 12 . . . . 1 2 . . 7 . . . Minesweeper 1 | . . . . . . . 1 . . . . . . . . . . . Mechanic 5 | . . . . . 2 3 . . . . . . . . . . . . Operator 6 | . 1 . . . 2 . . . . . . . . 2 1 . . . Watcher 14 | . 1 . 4 . 5 1 . . . . . 1 1 . 1 . . . Swarmer 60 | . 5 3 7 3 11 7 2 3 . 5 . 1 . . 11 2 . . Saboteur 1 | . . . . . . . . . . 1 . . . . . . . . Grunt 148 | . 9 2 20 4 32 28 5 . . 19 . 12 . . 17 . . . Brawler 8 | . . . 1 . 1 3 . . . 2 . . . . 1 . . . Duelist 7 | . . . 1 . . 4 . . . 1 . . . . 1 . . . Protector 3 | . . . 1 . . 2 . . . . . . . . . . . . Sentry 39 | . . . 9 . 9 2 . . . 2 . 8 . 4 4 . 1 . Hunter 9 | . . . . . . 3 . . . . 3 . . . 3 . . . Programmer 26 | . . . . . . 11 . 1 . . 2 . . . 10 . 2 . Behemoth 2 | . . . . . . . . . . . . 2 . . . . . . Cetus Guard 5 | . . . . . . . . . . . . . 5 . . . . . Decomposer 1 | . . . . . . . . 1 . . . . . . . . . . Packrat 2 | . . . . . . . . 2 . . . . . . . . . . Samaritan 2 | . . . . . . . . 2 . . . . . . . . . . Best Kill Streak 17 | 2 4 3 6 5 7 17 4 3 . 7 3 6 5 3 9 2 2 . Combat Bots Only 12 | . 3 3 6 4 5 12 4 3 . 7 1 6 4 3 9 2 2 . Max Kills in Single Turn 4 | 1 1 1 2 1 2 4 2 2 . 3 2 2 1 1 2 1 1 . Gunslinging 1 | . . . 1 . . . . . . . . . . . . . . . Exploded 4 | . . . 2 . 2 4 2 2 . 3 . 2 . . 2 . . . Melee 1 | . . . . . . . 1 1 . . . . . . 1 . . . Uniques/NPCs Destroyed . | . . . . . . . . . . . . . . . . . . . Combat | -11 -10 -10 -9 -9 -8 -7 -7 -7 -7 -6 -6 -6 -6 -6 -5 -5 -5 -5 -------- Run | Yrd Mat Min Mat Min Mat Fac Low Low Zio Pro Fac Ext Cet Arc Fac Upp Upp War Hostile Shots Fired 2152 | . 47 26 180 28 249 220 13 17 . 199 103 418 37 22 525 13 47 8 Missed 697 | . 10 5 49 8 75 77 5 7 . 80 25 157 14 3 170 1 9 2 Damage Taken 21152 | . 391 243 1787 192 2508 2549 89 211 . 1574 734 2297 674 479 5970 253 813 388 Core 2407 | . 39 22 143 17 238 247 . 16 . 205 83 332 50 . 875 29 62 49 Absorbed by Shields 2576 | . . . . . 109 362 32 . . 437 125 419 . . 1092 . . . Redirected to Shielding 106 | . . . . . . . . . . . 61 45 . . . . . . Ignored by Resistances 535 | . . . . . . 5 . . . . 282 248 . . . . . . Regen/Repaired (Parts) 1196 | . . . 34 . 131 85 . . 600 . 78 . . . 184 . . 84 Core Remaining (%) 61 | 100 . 75 . 60 56 . . . . 33 . . . 45 . . . . Volleys Fired 903 | 4 48 15 120 19 210 92 3 4 . 60 30 75 23 18 151 7 24 . Largest 3 | 2 2 2 2 2 2 3 2 1 . 3 3 3 3 3 3 1 2 . Hottest 145 | 40 46 46 46 46 50 78 78 39 . 95 90 90 145 145 98 24 140 . Shots Fired 1779 | 8 92 26 232 37 392 171 3 3 . 104 69 162 58 54 321 13 34 . Gun 1439 | 8 91 26 225 37 366 75 . . . 78 69 136 . . 281 13 34 . Cannon 158 | . . . . . . . . . . . . 16 58 54 30 . . . Launcher 180 | . 1 . 7 . 26 96 3 3 . 24 . 10 . . 10 . . . Special 2 | . . . . . . . . . . 2 . . . . . . . . Kinetic 1568 | 8 91 26 225 37 366 75 . . . 78 69 152 58 54 311 13 5 . Thermal 20 | . . . . . . . . . . . . . . . . . 20 . Explosive 182 | . 1 . 7 . 26 96 3 3 . 26 . 10 . . 10 . . . Electromagnetic 9 | . . . . . . . . . . . . . . . . . 9 . Robot Hit Streak 24 | 4 10 9 18 9 18 9 1 1 . 6 11 12 24 5 13 3 7 . Robot Miss Streak 8 | 1 4 2 5 4 5 7 . 1 . 3 3 3 3 6 8 4 2 . Penetration Max 2 | . . . . . . 1 . . . 1 1 1 1 1 2 . . . Secondary Targets 25 | . . . 7 . 2 1 . . . 2 . 3 . . 10 . . . Max Gunslinging Chain 1 | . . . 1 . 1 1 . . . 1 . 1 . . 1 . . . Shots Hit Robots 1266 | 5 55 15 160 22 287 180 7 10 . 57 51 113 46 25 203 5 25 . Core Hits 772 | 3 25 6 81 13 143 173 10 6 . 67 23 72 18 12 108 5 7 . Critical Kills 24 | . . . . . 1 5 . 1 . . . . 3 4 10 . . . Critical Parts Destroyed 54 | . . . . . 2 25 1 1 . . . 2 5 4 14 . . . Critical Strikes 92 | . . . . . 3 30 1 2 . 1 . 3 13 10 26 . 3 . Burn 3 | . . . . . . . . . . . . . . . . . 3 . Destroy 49 | . . . . . 3 3 . . . . . 2 8 9 24 . . . Blast 7 | . . . . . . . . . . . . 1 5 1 . . . . Smash 30 | . . . . . . 27 1 2 . . . . . . . . . . Sever 3 | . . . . . . . . . . 1 . . . . 2 . . . Melee Attacks 250 | . 3 . 6 . 9 131 7 9 . . 22 20 . . 30 10 . 3 Impact 147 | . . . . . . 131 7 9 . . . . . . . . . . Slashing 103 | . 3 . 6 . 9 . . . . . 22 20 . . 30 10 . 3 Piercing . | . . . . . . . . . . . . . . . . . . . Sneak Attacks 114 | . . . 1 . 7 75 1 6 . . 9 7 . . 8 . . . Combat Hostiles 2 | . . . . . . 1 . . . . . . . . 1 . . . Follow-up Attacks . | . . . . . . . . . . . . . . . . . . . Damage Inflicted 52341 | 62 830 247 2874 345 7152 17282 722 878 . 4034 1652 4610 1551 953 8427 145 577 . Guns 19310 | 62 829 235 2431 326 4509 1033 . . . 941 965 1943 . . 5314 145 577 . Cannons 3783 | . . . . . . . . . . . . 392 1551 953 887 . . . Explosions 17672 | . . . 363 . 2153 8511 399 212 . 3051 . 1557 . . 1426 . . . Melee 11417 | . . . 46 . 465 7730 323 666 . . 687 702 . . 798 . . . Ramming 117 | . 1 12 34 19 25 8 . . . . . 16 . . 2 . . . Kinetic 22594 | 62 829 235 2431 326 4509 1033 . . . 941 965 2335 1551 953 6201 145 78 . Thermal 511 | . . . . . . . . . . . . . . . 166 . 345 . Explosive 17506 | . . . 363 . 2153 8511 399 212 . 3051 . 1557 . . 1260 . . . Electromagnetic 154 | . . . . . . . . . . . . . . . . . 154 . Impact 8719 | . . . . . . 7730 323 666 . . . . . . . . . . Slashing 2740 | . . . 46 . 465 . . . . 42 687 702 . . 798 . . . Piercing . | . . . . . . . . . . . . . . . . . . . Highest Corruption 57 | . 3 3 1 1 . 13 13 13 13 . 1 6 . . 19 20 56 57 Average Corruption 10 | . 2 3 1 1 . 4 13 13 13 . 1 3 . . 5 19 40 56 Corruption Purged 5 | . . . . . . 5 . . . . . . . . . . . . Corruption Blocked 2 | . . . . . . . . . . . 2 . . . . . . . Effects 645 | . 14 22 18 9 . 113 56 57 2 . 4 59 . . 70 102 90 29 Message Errors 127 | . 3 10 5 1 . 15 8 8 . . . 14 . . 12 21 21 9 Matter Fused 169 | . 2 3 5 4 . 32 20 10 . . . 16 . . 18 26 25 8 Heat Flow Errors 76 | . . 1 1 1 . 13 10 4 . . 4 8 . . 7 15 8 4 Energy Discharges 85 | . 2 4 2 1 . 12 5 16 1 . . 5 . . 11 9 13 4 Parts Rejected 1 | . . . . . . 1 . . . . . . . . . . . . Parts Fused 9 | . . 1 . . . 2 . 2 . . . 1 . . . 3 . . Data Loss (minor) 91 | . 6 1 3 . . 17 9 10 1 . . 7 . . 10 15 9 3 Data Loss (major) 35 | . . 1 . 1 . 8 3 5 . . . 4 . . 4 3 5 1 Misfires 22 | . 1 1 1 . . 8 . . . . . 2 . . 1 6 2 . Alerts 16 | . . . . . . 3 . 1 . . . 1 . . 3 4 4 . Misdirections 2 | . . . . . . . . . . . . . . . 2 . . . Weapon Failures 12 | . . . 1 1 . 2 1 1 . . . 1 . . 2 . 3 . Overload Shots . | . . . . . . . . . . . . . . . . . . . Overflow Damage 6285 | . . . 1 . 194 4790 132 380 . 2 138 160 10 55 423 . . . Projectiles 223 | . . . . . . . . . . . . 43 10 55 115 . . . Explosions 473 | . . . . . 128 237 14 12 . 2 . 8 . . 72 . . . Melee 5589 | . . . 1 . 66 4553 118 368 . . 138 109 . . 236 . . . Knockbacks 64 | . . . 1 . . 37 2 2 . . . 5 2 5 10 . . . Impact 42 | . . . 1 . . 37 2 2 . . . . . . . . . . Kinetic 22 | . . . . . . . . . . . . 5 2 5 10 . . . Secondary . | . . . . . . . . . . . . . . . . . . . Self-Inflicted Damage 1224 | . . . 16 . 90 430 . 63 . 203 . 77 . . 345 . . . Shots 30 | . . . 1 . 4 13 . 1 . 4 . 3 . . 4 . . . Rammed 14 | . . 3 1 3 4 1 . . . . . 1 . . 1 . . . Targets Rammed 18 | . 1 3 2 3 6 1 . . . . . 1 . . 1 . . . Kicked . | . . . . . . . . . . . . . . . . . . . Crushed 4 | . 1 . 1 . 2 . . . . . . . . . . . . . Highest Temperature 461 | . 45 96 193 249 131 347 198 270 . 74 246 337 199 196 461 275 383 224 Average Temperature 85 | . 9 29 21 103 24 82 88 118 . 17 76 124 120 126 137 104 133 112 Received Heat Transfer 5423 | . 189 93 738 45 1263 291 49 . . 498 . 898 27 54 1197 . 54 27 Effects 13 | . . . . . . 1 . 1 . . 1 1 . . 8 1 . . Shutdowns 4 | . . . . . . 1 . . . . . . . . 3 . . . Energy Bleed 3 | . . . . . . . . . . . 1 . . . 2 . . . Interference 4 | . . . . . . . . 1 . . . . . . 2 1 . . Matter Decay 1 | . . . . . . . . . . . . . . . 1 . . . Short Circuit 1 | . . . . . . . . . . . . 1 . . . . . . Siege Activations . | . . . . . . . . . . . . . . . . . . . Robots Corrupted 46 | . . . . . . 40 3 2 . . . . . . . . 1 . Combat Hostiles 7 | . . . . . . 4 2 . . . . . . . . . 1 . Parts Fried 90 | . . . 2 . . 81 5 1 . . . 1 . . . . . . Impact Corruptions 165 | . . . 1 . . 144 5 15 . . . . . . . . . . Robots Melted . | . . . . . . . . . . . . . . . . . . . Combat Hostiles . | . . . . . . . . . . . . . . . . . . . Parts Melted 3 | . . . . . . . . . . . . 1 . . 1 . 1 . Heat Transferred 840 | . . . . . . . . . . . . . . . 100 . 740 . Parts Sabotaged 7 | . . . . . . . . . . . . . . . 7 . . . Parts Stolen . | . . . . . . . . . . . . . . . . . . . Parts Stripped . | . . . . . . . . . . . . . . . . . . . Power Chain Reactions 1 | . . . . . . 1 . . . . . . . . . . . . Alert | -11 -10 -10 -9 -9 -8 -7 -7 -7 -7 -6 -6 -6 -6 -6 -5 -5 -5 -5 ------- Run | Yrd Mat Min Mat Min Mat Fac Low Low Zio Pro Fac Ext Cet Arc Fac Upp Upp War Peak Influence 2105 | 10 311 211 679 495 864 2105 . . . . 97 235 131 192 1468 . . . Initial 378 | . 6 121 . 250 39 378 . . . . 16 23 45 . . . . . Average 369 | 6 100 63 411 271 499 645 . . . . 32 92 56 30 558 . . . Maximum Alert Level 5 | . 1 1 2 2 3 5 . . . . . 1 . . 4 . . . Low Security (%) 46 | 100 88 93 15 28 11 16 . . . . 100 96 100 100 34 . . . Level 1 18 | . 11 7 17 50 20 38 . . . . . 3 . . 11 . . . Level 2 19 | . . . 66 21 48 14 . . . . . . . . 10 . . . Level 3 8 | . . . . . 18 10 . . . . . . . . 24 . . . Level 4 3 | . . . . . . 6 . . . . . . . . 18 . . . Level 5 2 | . . . . . . 12 . . . . . . . . . . . . High Security . | . . . . . . . . . . . . . . . . . . . Max Security . | . . . . . . . . . . . . . . . . . . . Sterilizations 1 | . . . . . 1 . . . . . . . . . . . . . Squads Dispatched 69 | . 5 . 6 . 8 23 . . . 1 6 2 . . 18 . . . Investigation 11 | . 3 . 3 . 2 . . . . . 2 1 . . . . . . Extermination 20 | . . . . . . 11 . . . . 3 . . . 6 . . . Reinforcement 21 | . 2 . 2 . 4 6 . . . . 1 1 . . 5 . . . Assault 13 | . . . 1 . 1 6 . . . 1 . . . . 4 . . . Garrison 4 | . . . . . 1 . . . . . . . . . 3 . . . Intercept . | . . . . . . . . . . . . . . . . . . . Searches Triggered . | . . . . . . . . . . . . . . . . . . . Construction Impeded 12 | . . . . . 1 6 . . . . 1 1 . . 3 . . . Haulers Reinforced . | . . . . . . . . . . . . . . . . . . . Active Scanning Responses . | . . . . . . . . . . . . . . . . . . . Cargo Convoy Interrupts . | . . . . . . . . . . . . . . . . . . . Stealth | -11 -10 -10 -9 -9 -8 -7 -7 -7 -7 -6 -6 -6 -6 -6 -5 -5 -5 -5 --------- Run | Yrd Mat Min Mat Min Mat Fac Low Low Zio Pro Fac Ext Cet Arc Fac Upp Upp War Distress Signals 17 | . 3 . 4 . 4 1 . . . . . 2 2 . 1 . . . Communications Jammed . | . . . . . . . . . . . . . . . . . . . Distress Signals . | . . . . . . . . . . . . . . . . . . . Times Spotted 515 | . 26 5 64 14 76 76 7 4 . 30 15 51 10 17 103 3 3 11 Peak Tracking Total 16 | . 5 3 7 6 5 11 2 3 . 8 3 6 5 1 16 4 2 5 Tactical Retreats 32 | . 2 . 3 2 2 1 1 . . 1 2 4 . . 13 1 . . Traps | -11 -10 -10 -9 -9 -8 -7 -7 -7 -7 -6 -6 -6 -6 -6 -5 -5 -5 -5 ------- Run | Yrd Mat Min Mat Min Mat Fac Low Low Zio Pro Fac Ext Cet Arc Fac Upp Upp War Traps Triggered 23 | . 3 . 2 . 1 2 . . . . 2 8 . . 1 1 . 3 Indirectly . | . . . . . . . . . . . . . . . . . . . Trap Hack Attempts . | . . . . . . . . . . . . . . . . . . . Triggered . | . . . . . . . . . . . . . . . . . . . Disarmed . | . . . . . . . . . . . . . . . . . . . Reprogrammed . | . . . . . . . . . . . . . . . . . . . Reused . | . . . . . . . . . . . . . . . . . . . Traps Extracted . | . . . . . . . . . . . . . . . . . . . Installed . | . . . . . . . . . . . . . . . . . . . Triggered 11 | . . . . . . . . . . . . . . . . . . 11 Machines | -11 -10 -10 -9 -9 -8 -7 -7 -7 -7 -6 -6 -6 -6 -6 -5 -5 -5 -5 ---------- Run | Yrd Mat Min Mat Min Mat Fac Low Low Zio Pro Fac Ext Cet Arc Fac Upp Upp War Machines Disabled 37 | . . . 4 1 1 7 2 . . 2 . 2 . 4 14 . . . Max in Single Turn 4 | . . . 1 . 1 2 1 . . 1 . . . 1 4 . . . Garrison Access 2 | . . . . . 1 . . . . . 1 . . . . . . . Machines Repaired . | . . . . . . . . . . . . . . . . . . . Machines Dismantled . | . . . . . . . . . . . . . . . . . . . Machines Sabotaged . | . . . . . . . . . . . . . . . . . . . Overloaded Fab Kills . | . . . . . . . . . . . . . . . . . . . Hacking | -11 -10 -10 -9 -9 -8 -7 -7 -7 -7 -6 -6 -6 -6 -6 -5 -5 -5 -5 --------- Run | Yrd Mat Min Mat Min Mat Fac Low Low Zio Pro Fac Ext Cet Arc Fac Upp Upp War Machines Accessed 57 | . 7 1 15 . 13 2 1 . 1 . 6 2 1 . 6 2 . . Terminals 34 | . 5 1 10 . 7 1 1 . . . 2 2 1 . 4 . . . Fabricators 2 | . . . . . . . . . . . 2 . . . . . . . Repair Stations 7 | . . . 2 . 2 1 . . . . 1 . . . 1 . . . Recycling Units 5 | . 2 . 2 . 1 . . . . . . . . . . . . . Scanalyzers 3 | . . . 1 . 2 . . . . . . . . . . . . . Garrison Access 3 | . . . . . 1 . . . . . 1 . . . 1 . . . Total Hacks 142 | . 17 4 41 . 31 5 4 . 1 . 20 4 1 . 9 5 . . Successful 83 | . 11 1 28 . 17 2 4 . 1 . 10 1 . . 3 5 . . Failed 59 | . 6 3 13 . 14 3 . . . . 10 3 1 . 6 . . . Catastrophic 9 | . . 1 2 . 2 1 . . . . . . . . 3 . . . Database Lockouts . | . . . . . . . . . . . . . . . . . . . Manual 58 | . 12 4 23 . 11 2 . . 2 . . . . 2 2 . . . Terminals 88 | . 15 4 30 . 17 2 4 . . . 6 4 1 . 5 . . . Fabricators 5 | . . . . . . . . . . . 5 . . . . . . . Repair Stations 22 | . . . 7 . 4 3 . . . . 6 . . . 2 . . . Recycling Units 5 | . 2 . 2 . 1 . . . . . . . . . . . . . Scanalyzers 9 | . . . 2 . 7 . . . . . . . . . . . . . Garrison Access 7 | . . . . . 2 . . . . . 3 . . . 2 . . . Terminal Hacks 37 | . 7 1 11 . 3 . 4 . 1 . 3 1 . . 1 5 . . Record 8 | . . . . . . . 4 . . . . . . . . 4 . . Part Schematic 2 | . 1 . . . . . . . 1 . . . . . . . . . Robot Analysis 4 | . 1 . 3 . . . . . . . . . . . . . . . Prototype ID Bank 6 | . 2 1 3 . . . . . . . . . . . . . . . Open Door 2 | . . . . . . . . . . . . 1 . . . 1 . . Alert Level 7 | . 2 . 3 . . . . . . . 1 . . . 1 . . . Unreport Threat 4 | . . . 2 . 2 . . . . . . . . . . . . . Locate Traps 3 | . 1 . . . 1 . . . . . 1 . . . . . . . Zone Layout 1 | . . . . . . . . . . . 1 . . . . . . . Fabricator Hacks 3 | . . . . . . . . . . . 3 . . . . . . . Load Schematic 1 | . . . . . . . . . . . 1 . . . . . . . Build 2 | . . . . . . . . . . . 2 . . . . . . . Repair Station Hacks 16 | . . . 5 . 4 2 . . . . 3 . . . 2 . . . Scan Component 9 | . . . 3 . 2 1 . . . . 2 . . . 1 . . . Repair 7 | . . . 2 . 2 1 . . . . 1 . . . 1 . . . Recycling Unit Hacks . | . . . . . . . . . . . . . . . . . . . Scanalyzer 9 | . . . 2 . 7 . . . . . . . . . . . . . Insert Component 4 | . . . 1 . 3 . . . . . . . . . . . . . Analyze 5 | . . . 1 . 4 . . . . . . . . . . . . . Garrison Access Hacks 2 | . . . . . 1 . . . . . 1 . . . . . . . Seal Access 2 | . . . . . 1 . . . . . 1 . . . . . . . Unauthorized Hacks 16 | . 4 . 10 . 2 . . . . . . . . . . . . . Terminals 11 | . 2 . 8 . 1 . . . . . . . . . . . . . Botnet 11 | . 2 . 8 . 1 . . . . . . . . . . . . . Fabricators . | . . . . . . . . . . . . . . . . . . . Repair Stations . | . . . . . . . . . . . . . . . . . . . Recycling Units 5 | . 2 . 2 . 1 . . . . . . . . . . . . . Mask 1 | . . . . . 1 . . . . . . . . . . . . . Tunnel 4 | . 2 . 2 . . . . . . . . . . . . . . . Scanalyzers . | . . . . . . . . . . . . . . . . . . . Garrison Access . | . . . . . . . . . . . . . . . . . . . Data Cores Recovered . | . . . . . . . . . . . . . . . . . . . Used . | . . . . . . . . . . . . . . . . . . . Hacking Detections 40 | . 4 1 11 . 10 1 1 . . . 5 1 1 . 5 . . . Full Trace Events 3 | . . . . . 1 . . . . . 2 . . . . . . . Feedback Events . | . . . . . . . . . . . . . . . . . . . Feedback Blocked . | . . . . . . . . . . . . . . . . . . . Robot Schematics Acquired . | . . . . . . . . . . . . . . . . . . . Robots Built . | . . . . . . . . . . . . . . . . . . . Authchips . | . . . . . . . . . . . . . . . . . . . Time . | . . . . . . . . . . . . . . . . . . . Total Robot Build Rating . | . . . . . . . . . . . . . . . . . . . Part Schematics Acquired 6 | . 1 . 1 . 3 . . . 1 . . . . . . . . . Parts Built 4 | . . . . . . . . . . . 4 . . . . . . . Authchips . | . . . . . . . . . . . . . . . . . . . Time 179 | . . . . . . . . . . . 179 . . . . . . . Total Part Build Rating 18 | . . . . . . . . . . . 18 . . . . . . . Parts Repaired 7 | . . . 2 . 2 1 . . . . 1 . . . 1 . . . Time 256 | . . . 76 . 70 26 . . . . 44 . . . 40 . . . Parts Recycled . | . . . . . . . . . . . . . . . . . . . Recycled Matter . | . . . . . . . . . . . . . . . . . . . Retrieved Matter . | . . . . . . . . . . . . . . . . . . . Retrieved Components . | . . . . . . . . . . . . . . . . . . . Parts Scanalyzed 4 | . . . 1 . 3 . . . . . . . . . . . . . Part Schematics Acquired 4 | . . . 1 . 3 . . . . . . . . . . . . . Parts Damaged 1 | . . . 1 . . . . . . . . . . . . . . . Bothacking | -11 -10 -10 -9 -9 -8 -7 -7 -7 -7 -6 -6 -6 -6 -6 -5 -5 -5 -5 ------------ Run | Yrd Mat Min Mat Min Mat Fac Low Low Zio Pro Fac Ext Cet Arc Fac Upp Upp War Used RIF Installer . | . . . . . . . . . . . . . . . . . . . Robots Hacked . | . . . . . . . . . . . . . . . . . . . Non-combat . | . . . . . . . . . . . . . . . . . . . Combat . | . . . . . . . . . . . . . . . . . . . Robot Hacks Applied . | . . . . . . . . . . . . . . . . . . . Relay Couplers Released . | . . . . . . . . . . . . . . . . . . . Fabnet Peak Effective % . | . . . . . . . . . . . . . . . . . . . Robots Rewired 31 | . . . . . . . . . . 2 . 29 . . . . . . Allies Hacked . | . . . . . . . . . . . . . . . . . . . Hacks Repelled . | . . . . . . . . . . . . . . . . . . . Allies | -11 -10 -10 -9 -9 -8 -7 -7 -7 -7 -6 -6 -6 -6 -6 -5 -5 -5 -5 -------- Run | Yrd Mat Min Mat Min Mat Fac Low Low Zio Pro Fac Ext Cet Arc Fac Upp Upp War Total Allies 38 | . . 3 . 2 . . . . . 2 . 31 . . . . . . Largest Group 11 | . . 3 3 2 . . . . . 1 . 11 5 . . . . . Highest-Rated Group 348 | . . 40 40 51 . . . . . 32 . 348 140 . . . . . Highest-Rated Ally 39 | . . 16 16 31 . . . . . 32 . 39 39 . . . . . Total Orders 2 | . . . . . . . . . . . 1 . . . . 1 . . EXPLORE 2 | . . . . . . . . . . . 1 . . . . 1 . . Ally Attacks 229 | . . 3 21 3 . . . . . 1 . 176 25 . . . . . Total Damage 3896 | . . 44 231 133 . . . . . 20 . 3008 460 . . . . . Kills 31 | . . 1 6 2 . . . . . . . 18 4 . . . . . Allies Corrupted 2 | . . . . . . . . . . . . 2 . . . . . . Allies Melted 2 | . . . . . . . . . . . . . . . . . . 2 Intel | -11 -10 -10 -9 -9 -8 -7 -7 -7 -7 -6 -6 -6 -6 -6 -5 -5 -5 -5 ------- Run | Yrd Mat Min Mat Min Mat Fac Low Low Zio Pro Fac Ext Cet Arc Fac Upp Upp War Robot Analysis Total 4 | . 1 . 3 . . . . . . . . . . . . . . . Derelict Logs Recovered 14 | . . 2 . 3 . . 3 1 2 1 . . . . . 2 . . Drone Launches 4 | . . . . . . . . . . . 2 . . . . 2 . . Drone Recoveries 1 | . . . . . . . . . . . 1 . . . . . . . Exploration | -11 -10 -10 -9 -9 -8 -7 -7 -7 -7 -6 -6 -6 -6 -6 -5 -5 -5 -5 ------------- Run | Yrd Mat Min Mat Min Mat Fac Low Low Zio Pro Fac Ext Cet Arc Fac Upp Upp War Turns Passed 43830 | 46 1120 1100 2936 1371 4124 6199 1491 1542 3113 3656 1543 3174 538 2062 3620 2278 1893 2024 Spaces Moved 14815 | 23 502 618 1357 535 1053 1915 525 513 1094 1047 700 1324 166 361 1634 859 352 237 Core 633 | . . . . . . . . . . . . . . . 223 401 . 9 Treads 11092 | 6 502 618 1357 535 1053 1915 525 513 1094 1047 . 52 166 361 313 458 349 228 Legs 17 | 17 . . . . . . . . . . . . . . . . . . Wheels 3070 | . . . . . . . . . . . 700 1272 . . 1098 . . . Hover . | . . . . . . . . . . . . . . . . . . . Flight 3 | . . . . . . . . . . . . . . . . . 3 . Fastest Speed 50 | 120 160 160 160 240 240 240 240 240 243 243 115 120 242 242 50 50 323 50 Average Speed 240 | 130 160 160 174 240 258 241 273 289 280 328 130 186 242 247 163 252 510 848 Slowest Speed 1114 | 160 160 160 240 240 320 320 320 320 323 570 240 245 243 405 640 485 1114 880 Overloaded Moves . | . . . . . . . . . . . . . . . . . . . Propulsion Burnouts . | . . . . . . . . . . . . . . . . . . . Robots Hopped . | . . . . . . . . . . . . . . . . . . . Cave-ins Triggered . | . . . . . . . . . . . . . . . . . . . Exploration Rate (%) 69 | 2 91 98 97 102 83 28 65 64 84 97 24 99 67 92 45 83 62 38 Regions Visited 18 Branch Regions 12 Pre-discovered Areas 9 | . 2 . 2 3 . . . . 1 1 . . . . . . . . Known Exits Taken 13 | . . . . . 1 1 1 1 1 1 1 1 1 1 1 1 1 . Unknown Exits Taken 5 | 1 1 1 1 1 . . . . . . . . . . . . . . Scrap Searched 19 | . . 1 . 1 . . 4 2 4 2 . . . . . 3 2 . Spaces Dug 156 | . 10 . 4 . 35 29 13 18 . . 8 8 . . 18 10 . 3 Terrain Destroyed 1590 | . 10 . 19 . 147 665 27 39 . 296 8 124 4 7 230 10 1 3 Melee 82 | . 2 . 4 . . 29 1 . . . 8 8 . . 17 10 . 3 Projectile 147 | . . . . . . 1 . . . 8 . 10 4 7 116 . 1 . AOE 1361 | . 8 . 15 . 147 635 26 39 . 288 . 106 . . 97 . . . Terrain Rammed . | . . . . . . . . . . . . . . . . . . . Walls Destroyed . | . . . . . . . . . . . . . . . . . . . Machines Disabled . | . . . . . . . . . . . . . . . . . . . Actions | -11 -10 -10 -9 -9 -8 -7 -7 -7 -7 -6 -6 -6 -6 -6 -5 -5 -5 -5 --------- Run | Yrd Mat Min Mat Min Mat Fac Low Low Zio Pro Fac Ext Cet Arc Fac Upp Upp War Total 21156 | 33 722 703 1741 584 2161 3088 563 549 1131 1159 1249 1872 256 1490 2247 946 415 247 Wait 4033 | . 139 58 168 25 771 853 14 13 3 2 394 93 57 1100 282 49 12 . Move 14797 | 22 501 617 1356 534 1052 1914 524 512 1093 1046 699 1323 165 360 1633 858 351 237 Hop . | . . . . . . . . . . . . . . . . . . . Pick Up 180 | . 15 1 18 1 31 20 4 4 8 3 15 19 2 2 25 3 7 2 Fast Attach 108 | 1 . 2 3 . 4 4 1 2 7 8 12 10 . 4 35 9 5 1 Attach 100 | 2 . 1 5 1 14 11 6 1 4 5 3 14 . . 20 4 8 1 Detach 23 | . . . . . . . 2 1 2 1 3 1 . . 3 4 3 3 Swap 252 | . 9 3 32 1 38 36 1 1 9 17 29 35 5 2 29 . 5 . Drop 198 | 4 6 3 31 . 26 26 1 2 5 6 27 26 4 4 25 2 . . Fire 903 | 4 48 15 120 19 210 92 3 4 . 60 30 75 23 18 151 7 24 . Melee 250 | . 3 . 6 . 9 131 7 9 . . 22 20 . . 30 10 . 3 Ram 2 | . . . . . . . . . . . . 1 . . 1 . . . Kick . | . . . . . . . . . . . . . . . . . . . Crush 16 | . 1 3 2 3 6 1 . . . . . . . . . . . . Escape Stasis 60 | . . . . . . . . . . . 15 32 . . 13 . . . Rewire 234 | . . . . . . . . . . 11 . 223 . . . . . . Trap . | . . . . . . . . . . . . . . . . . . . Miscellaneous . | . . . . . . . . . . . . . . . . . . . Route ------- -11/Scrapyard -10/Materials (discovered 5 exits: *Mat x3 / *Min x2) -10/Mines (discovered 4 exits: *Mat x2 / [*Exi] / Sub) -9/Materials (discovered 4 exits: *Mat x3 / [*Min]) -9/Mines (discovered 2 exits: *Mat x2) -8/Materials (discovered 3 exits: *Fac x2 / *Sto) -7/Factory (discovered 2 exits: *Fac / *Low) -7/Lower Caves -7/Lower Caves (discovered 2 exits: *Fac / *Zio) -7/Zion -6/Proximity Caves -6/Factory (discovered 3 exits: *Fac / Low / *Ext) -6/Extension (discovered 2 exits: *Fac / *Cet) -6/Cetus (discovered 2 exits: *Fac / *Arc) -6/Archives (discovered 3 exits: *Fac / *Hub x2) -5/Factory -5/Upper Caves -5/Upper Caves (discovered 2 exits: *Fac / *War) -5/Warlord History --------- Turn | Location | Event 1 | -11/Scrapyard | Discovered new exit (range 3) 47 | -11/Scrapyard | Entered Materials 306 | -10/Materials | Build established: Mutant 367 | -10/Materials | Discovered new exit (range 12) 485 | -10/Materials | Discovered new exit (range 10) 653 | -10/Materials | Discovered new exit (range 7) 802 | -10/Materials | Discovered new exit (range 3) 897 | -10/Materials | Discovered new exit (range 7) 1167 | -10/Materials | Entered Mines 1274 | -10/Mines | Deemed a non-threat by the Exiles lab entrance 1274 | -10/Mines | Discovered new exit (range 5) 1478 | -10/Mines | Discovered new exit (range 5) 1516 | -10/Mines | Identified exit to Subcaves 1518 | -10/Mines | Assisted by bots powering up and referring to "LRC-V3" 1519 | -10/Mines | Learned Materials emergency access door positions 1535 | -10/Mines | Discovered new exit (range 14) 1710 | -10/Mines | Joined a pair of Derelicts in attacking an 0b10 outpost 2021 | -10/Mines | Build established: Scavenger-Mutant 2267 | -10/Mines | Entered Materials 2267 | -9/Materials | Accompanied by 3 allies 2267 | -9/Materials | Evolved 2 slots: Propulsion x1, Utility x1 2313 | -9/Materials | Repaired Hvy. Assault Rifle 2596 | -9/Materials | Discovered new exit (range 5) 2897 | -9/Materials | Discovered new exit (range 14) 3076 | -9/Materials | Discovered new exit (range 16) 3206 | -9/Materials | Repaired Broken Arm. Wheel? 3467 | -9/Materials | First assault squad dispatched 3572 | -9/Materials | Build established: Mutant 3787 | -9/Materials | Discovered new exit (range 12) 5203 | -9/Materials | Entered Mines 5215 | -9/Mines | Learned Materials emergency access door positions 5389 | -9/Mines | Discovered new exit (range 3) 5719 | -9/Mines | Discovered new exit (range 8) 5878 | -9/Mines | Found a hidden stash of uninstalled traps 6174 | -9/Mines | A weapon hastily lodged in a ceiling crevice suddenly fell to the ground 6574 | -9/Mines | Entered Materials 6574 | -8/Materials | Evolved 2 slots: Propulsion x1, Utility x1 6964 | -8/Materials | Lost 3 parts (1n2w) 7328 | -8/Materials | Garrison activated, responded to threat 7374 | -8/Materials | First assault squad dispatched 7485 | -8/Materials | Build established: Scavenger-Mutant 7662 | -8/Materials | Lost 3 parts (1p2n) 7832 | -8/Materials | Discovered new exit (range 5) 7934 | -8/Materials | Build established: Mutant 8661 | -8/Materials | Repaired Imp. Sensor Array? 8814 | -8/Materials | Build established: Scavenger-Mutant 9315 | -8/Materials | Repaired Imp. Treads 9731 | -8/Materials | Discovered new exit (range 12) 9837 | -8/Materials | Identified exit to Storage 10081 | -8/Materials | Sterilization system engaged 10081 | -8/Materials | Non-combat units ordered to evacuate 10089 | -8/Materials | Discovered new exit (range 16) 10175 | -8/Materials | Identified exit to Factory 10181 | -8/Materials | Combat units ordered to evacuate 10381 | -8/Materials | Ambient heat levels rising (+10) 10531 | -8/Materials | Ambient heat levels rising (+10) 10681 | -8/Materials | Ambient heat levels rising (+10) 10698 | -8/Materials | Entered Factory 10698 | -7/Factory | Evolved 2 slots: Utility x1, Weapon x1 10759 | -7/Factory | Repaired Lgt. Treads 10989 | -7/Factory | Build established: Scavenger-Skirmisher 11486 | -7/Factory | Build established: Scavenger-Mutant 11965 | -7/Factory | Discovered new exit (range 15) 12001 | -7/Factory | Identified exit to Lower Caves 12445 | -7/Factory | Build established: Mutant 12503 | -7/Factory | Discovered new exit (range 5) 12515 | -7/Factory | Identified exit to Factory 13132 | -7/Factory | Build established: Scavenger-Mutant 15098 | -7/Factory | First assault squad dispatched 15302 | -7/Factory | Lost 4 parts (1p3u) 15550 | -7/Factory | Build established: Mutant 15685 | -7/Factory | Destroyed 12 combat bots 16005 | -7/Factory | System corruption reached 10% 16859 | -7/Factory | High security lockdown imminent 16897 | -7/Factory | Entered Lower Caves 16920 | -7/Lower Caves | Identified exit to Lower Caves 16927 | -7/Lower Caves | Lost 7 parts (3n2u2w) 17219 | -7/Lower Caves | Attracted the attention of an 0b10 base 17327 | -7/Lower Caves | Learned Armory trap positions 17327 | -7/Lower Caves | Learned Extension terminal intel 17327 | -7/Lower Caves | Learned Armory terminal intel 17327 | -7/Lower Caves | Learned Factory garrison access intel 17638 | -7/Lower Caves | Learned Factory stockpile data 17956 | -7/Lower Caves | Build established: Scavenger-Mutant 17998 | -7/Lower Caves | Learned Factory stockpile data 18388 | -7/Lower Caves | Entered another Lower Caves area 18439 | -7/Lower Caves | Discovered exit to Factory (range 7) 19179 | -7/Lower Caves | Build established: Mutant 19914 | -7/Lower Caves | Discovered new exit (range 4) 19923 | -7/Lower Caves | Identified exit to Zion 19930 | -7/Lower Caves | Entered Zion 20036 | -7/Zion | System corruption cleaned by Quarantine Array 20302 | -7/Zion | Discovered new exit (range 10) 20327 | -7/Zion | Identified exit to Proximity Caves 20969 | -7/Zion | Learned location of 1 exit from Lower Caves 20978 | -7/Zion | Visited the Megawrench Repair Shop 21143 | -7/Zion | Found Prototype Special Weapon 21143 | -7/Zion | Identified RU-N14's Throwing Claymores 21148 | -7/Zion | Found RU-N14's Throwing Claymores 21156 | -7/Zion | Found RU-N14's Throwing Claymores 21253 | -7/Zion | Received a hallucinogenic algorithm 21450 | -7/Zion | Build established: Gladiator 21807 | -7/Zion | Build established: Derelict-Gladiator 22532 | -7/Zion | Megawrench repaired 12 parts 22678 | -7/Zion | Build established: Derelict-Skirmisher 22750 | -7/Zion | Found RU-N14's Throwing Claymores 23043 | -7/Zion | Entered Proximity Caves 24210 | -6/Proximity Caves | Attracted the attention of an 0b10 outpost 24244 | -6/Proximity Caves | Destroyed 7 combat bots 24298 | -6/Proximity Caves | Core integrity fell below 50% 24343 | -6/Proximity Caves | Lost 4 parts (2n1u1w) 24574 | -6/Proximity Caves | Attracted the attention of an 0b10 checkpoint 26144 | -6/Proximity Caves | Discovered exit to Factory (range 7) 26551 | -6/Proximity Caves | Build established: Skirmisher 26699 | -6/Proximity Caves | Entered Factory 26699 | -6/Factory | Evolved 2 slots: Utility x2 26700 | -6/Factory | Identified exit to Lower Caves 26702 | -6/Factory | Loaded intel: 4 garrison access locations 26816 | -6/Factory | Fabricated Arm. Wheel? 26918 | -6/Factory | Fabricated Adv. Focal Shield (x2) 27075 | -6/Factory | Build established: Mutant 27789 | -6/Factory | Discovered new exit (range 5) 27801 | -6/Factory | Identified exit to Factory 27960 | -6/Factory | Repaired Broken Arm. Wheel 28221 | -6/Factory | Discovered new exit (range 16) 28241 | -6/Factory | Identified exit to Extension 28242 | -6/Factory | Entered Extension 28243 | -6/Extension | Loaded intel: 4 terminal locations 28288 | -6/Extension | Rescued a captive Derelict 28289 | -6/Extension | Rescued a captive Derelict 28370 | -6/Extension | Build established: Scavenger-Mutant 28735 | -6/Extension | Spotted B-75 Beast 28814 | -6/Extension | Spotted B-75 Beast 28821 | -6/Extension | Destroyed B-75 Beast 28833 | -6/Extension | Destroyed B-75 Beast 28874 | -6/Extension | Lost 11 allies 29017 | -6/Extension | Disrupted transfer network 29061 | -6/Extension | Build established: Scavenger-Tank 29210 | -6/Extension | Lost 3 allies 29385 | -6/Extension | Lost 3 allies 29451 | -6/Extension | Lost 12 parts (1p4n3u4w) 29789 | -6/Extension | Build established: Commander-Mutant 30085 | -6/Extension | Lost 4 allies 31107 | -6/Extension | Discovered new exit (range 16) 31110 | -6/Extension | Discovered exit to Factory (range 15) 31162 | -6/Extension | Identified exit to Cetus 31416 | -6/Extension | Entered Cetus 31416 | -6/Cetus | Accompanied by 5 allies 31448 | -6/Cetus | Spotted Cetus Guard 31448 | -6/Cetus | Spotted Cetus Guard 31450 | -6/Cetus | Spotted Cetus Guard 31451 | -6/Cetus | Spotted Cetus Guard 31455 | -6/Cetus | Allies destroyed Cetus Guard 31463 | -6/Cetus | Allies destroyed Cetus Guard 31464 | -6/Cetus | Core integrity fell below 50% 31465 | -6/Cetus | Destroyed Cetus Guard 31485 | -6/Cetus | Allies destroyed Cetus Guard 31494 | -6/Cetus | Lost 4 allies 31671 | -6/Cetus | Discovered new exit (range 16) 31720 | -6/Cetus | Spotted Cetus Guard 31720 | -6/Cetus | Spotted Cetus Guard 31723 | -6/Cetus | Spotted Cetus Guard 31729 | -6/Cetus | Destroyed Cetus Guard 31738 | -6/Cetus | Spotted Cetus Guard 31745 | -6/Cetus | Destroyed Cetus Guard 31749 | -6/Cetus | Destroyed Cetus Guard 31752 | -6/Cetus | Destroyed Cetus Guard 31780 | -6/Cetus | Discovered exit to Factory (range 16) 31797 | -6/Cetus | Met Revision 17 31895 | -6/Cetus | Identified exit to Archives 31954 | -6/Cetus | Entered Archives 32075 | -6/Archives | Build established: Scavenger-Tank 32117 | -6/Archives | Discovered new exit (range 16) 32167 | -6/Archives | Discovered exit to Factory (range 16) 32201 | -6/Archives | Discovered new exit (range 16) 32235 | -6/Archives | Identified exit to Hub_04(d) 32723 | -6/Archives | Unable to access archive contents 32762 | -6/Archives | Unable to access archive contents 32851 | -6/Archives | Unable to access archive contents 34016 | -6/Archives | Entered Factory 34016 | -5/Factory | Evolved 2 slots: Power x1, Utility x1 34333 | -5/Factory | Repaired Antimatter Cannon 34454 | -5/Factory | Build established: Scavenger-Mutant 35203 | -5/Factory | Build established: Mutant 35328 | -5/Factory | Lost 3 parts (1n1u1w) 36103 | -5/Factory | Build established: Scavenger-Tank 36416 | -5/Factory | First assault squad dispatched 36976 | -5/Factory | Core integrity fell below 50% 37006 | -5/Factory | Lost 14 parts (2p4n5u3w) 37007 | -5/Factory | Destroyed 9 combat bots 37260 | -5/Factory | Lost 3 parts (3n) 37498 | -5/Factory | Released all parts (10) 37499 | -5/Factory | System corruption reached 10% 37511 | -5/Factory | Core integrity fell below 20% 37528 | -5/Factory | Lost 5 parts (2p3n) 37626 | -5/Factory | Discovered new exit (range 9) 37630 | -5/Factory | Identified exit to Upper Caves 37636 | -5/Factory | Entered Upper Caves 37793 | -5/Upper Caves | Build established: Mutant 38203 | -5/Upper Caves | Learned Armory stockpile data 38203 | -5/Upper Caves | Learned Research garrison access intel 38268 | -5/Upper Caves | Learned Factory garrison access intel 38292 | -5/Upper Caves | Learned Factory terminal intel 38460 | -5/Upper Caves | Build established: Hauler-Mutant 39108 | -5/Upper Caves | Discovered new exit (range 14) 39894 | -5/Upper Caves | Identified exit to Upper Caves 39914 | -5/Upper Caves | Entered another Upper Caves area 39953 | -5/Upper Caves | Discovered new exit (range 8) 39992 | -5/Upper Caves | Identified exit to Factory 40508 | -5/Upper Caves | System corruption reached 30% 40573 | -5/Upper Caves | Lost 5 parts (2p1n1u1w) 41038 | -5/Upper Caves | Attracted the attention of an 0b10 checkpoint 41097 | -5/Upper Caves | Lost 4 parts (3n1u) 41407 | -5/Upper Caves | Build established: Scavenger-Gunner 41634 | -5/Upper Caves | Discovered new exit (range 8) 41798 | -5/Upper Caves | Identified exit to Warlord 41807 | -5/Upper Caves | Entered Warlord 42114 | -5/Warlord | Build established: Hauler-Mutant 42363 | -5/Warlord | System corruption cleaned by Quarantine Array 43107 | -5/Warlord | Warlord's base attacked by MAIN.C 43457 | -5/Warlord | Warlord forces counterattacked 43782 | -5/Warlord | Warlord base infiltrated, sounded retreat 43819 | -5/Warlord | Spotted Striker 43827 | -5/Warlord | Released all parts (11) 43831 | -5/Warlord | Destroyed by G-50 Soldier with Heavy Laser Last Messages --------------- 43820_ G-50 Soldier destroyed. 43821_ VTOL Module destroyed. 43824_ Chain Missile intercepted. 43824_ G-67 Veteran destroyed. 43824_ I-47 Archangel destroyed. 43824_ G-50 Soldier destroyed. 43825_ The unstable cave ceiling collapses. 43826_ Imp. Treads destroyed. 43827_ Released Adv. Heat Sink. 43827_ Released Mak. Flight Unit. 43827_ Released Humpback. 43827_ Released Adv. Terrain Scan Processor. 43827_ Released Imp. System Shield. 43827_ Released Adv. Signal Interpreter. 43827_ Released Neutrino Core. 43827_ Released Mak. Power Source. 43827_ Released Phasing Sabre. 43827_ Released Backup Laser III. 43831_ The unstable cave ceiling collapses. 43831_ Imp. Field Recycling Unit crushed. Map ----- +----------------------------------------------------+ | ?????????????????????????????????????????????????? | | ?????????????????????????????????????????????????? | | ?????????????????????????????????????????????????? | | ?????????????????????????????????????????????????? | | ?????????????????????????????????????????????????? | | ?????????????????????????????????????????????????? | | ???????????????????#########?????????????????????? | | ???????????????????#"""""""#?????????????????????? | | ???????????????????#"""""""#?????????????????????? | | ???????????????????#"" " ""#?????????????????????? | | ???????????????????#""" """#?????????????????????? | | ???????????????????#"" ""#????#######??????????? | | ???????????????????### ###??? #??????????? | | ?????????########????##+####### #??????????? | | ?????????# #????#^ ^ + #??????????? | | ?????????# ###### ^ # #??????????? | | ?????????# """" + ^"""" # #??????????? | | ?????????# """" # ^^"""" #? #??????????? | | ?????????# """" # """" #? #??????????? | | ?????????# """" # """" #?? #??????????? | | ?????????# +^^ ^^ +?? #??????????? | | ?????????# """" # #??? #??????????? | | ?????????# """" ##+#####+## #??? #??????????? | | ?????????# """" # # *#########??????????? | | ?????????# """" # # =%! g #?????????????? | | ?????????# # @/ ! g #??????""?????? | | ?????????# # ] # ggg#?????#""#????? | | ?????????#######; ]] ######g #?????#""#????? | | ???????????????## #?#### #######""#####? | | ????????????????# #?# # "" "## | | ????????????????#*[ #?# # "" """ | | ???????????????##|[ ###### # "" """ | | ???????????#####!!#/ # / ^ | | ???????????# [ * # / | | ???????????# ] /^ ^ ^ ^ | | ???????????# ## /^ | | ???????????# ## # # "" """ | | ???????????# ### # # "" """ | | ???????????# + # "" "## | | ???????????# ### # #######""#####? | | ???????????# ?# ##?# #?????#""#????? | | ???????????# % # ## #??# #?????#""#????? | | ???????????# % % #??# #??????""?????? | | ???????????# #??# #?????????????? | | ???????????## #??# #?????????????? | | ??????????+ #??# #?????????????? | | ??????????# ## ######+#######??# #?????????????? | | ??????????#??##?# ^ #????# #?????????????? | | ????????????????#"""" #???## ##????????????? | | ????????????????#"""" #???# #????????????? | +----------------------------------------------------+ Best States ------------- Heat Dissipation 59 Coolant Potential 65 Energy Generation 41 Energy Capacity 750 Matter Stores 490 Matter Capacity 500 Sight Range 16 Robot Scan Range 16 Terrain Scan Range 16 Terrain Scan Density 210 ECM Strength 2 Corruption Containment 8 Corruption Block 4 Armor Coverage 600 Resistance: KI 30 Utility Shielding 66 Melee Speed Boost 20 Evasion (%) 50 Targeting Accuracy 6 Launcher Accuracy 20 Target Analysis 6 Recoil Reduction 10 Offensive Hacking 10 Defensive Hacking 12 Item Schematics ----------------- Huge Storage Unit | -10/Materials | Hacked Arm. Wheel | -9/Materials | Scanalyzed Imp. Sensor Array | -8/Materials | Scanalyzed Imp. Shield Generator | -8/Materials | Scanalyzed Imp. Signal Interpreter | -8/Materials | Scanalyzed Beamcaster | -7/Zion | Free Robot Schematics ------------------ None Fabricated ------------ Arm. Wheel | x2 | -6/Factory Adv. Focal Shield | x2 | -6/Factory | Preloaded Alien Tech Used ----------------- None Achievements -------------- Can't Touch This Challenges ------------ None Game ------ Seed HybridParticleTelecube Manual? 0 Play Time 03:50:27 Cumulative 162.5 hours Start 2024.09.24 @ 01:16:50 End 2024.09.24 @ 08:04:57 Sessions 8 Manual Loads 0 Difficulty Rogue Special Mode None Game No. 211 Rogue 211 Adventurer 0 Explorer 0 Win Type - Total 1 Types 1/0/0/0/0/0/0/0/0 Lore% 51 Gallery% 62 Achievement% 50 Wizard Run 0 Options --------- Layout 0 ASCII 0 Keyboard 0 Movement Mouse Keybinds 1 Fullscreen 2 Font 18/TerminusBold Map View 76x50 Zoom Use 0% Tactical HUD 1 Map Filters NONE Filters NONE Steam 0 RUN: e813212f-6589-4028-a679-f6f162cb61dc